[Event "Austrian Championship 2022"]
[Site "Vienna"]
[Date "2022.08.15"]
[Round "5.21"]
[White "Hechl, Gerald"]
[Black "Wagner, Leopold Franziskus"]
[Result "1/2-1/2"]
[ECO "D00"]
[WhiteElo "2222"]
[BlackElo "2080"]
[Annotator "TA"]
[PlyCount "96"]
[EventDate "2022.08.12"]
[EventType "swiss"]
[EventCountry "AUT"]
[SourceTitle "playchess.com"]
[Source "ChessBase"]
[SourceQuality "1"]
[TimeControl "40/5400+30:1800+30"]

{[%evp 9,96,-14,-10,-26,0,-11,0,-2,6,0,16,17,9,13,62,63,62,56,70,42,66,75,69,52,62,23,43,27,29,15,17,20,28,0,0,-52,-45,-78,-80,-157,-155,-149,-131,-159,-124,-117,-117,-118,-120,-118,-112,-103,-85,-65,-93,-102,-105,-112,-110,-107,-106,-101,-95,-103,-107,-126,-112,-152,-67,-155,-126,-136,-142,-142,-139,-119,-120,-141,-128,-127,-149,-142,-113,-150,-35,-33,-17,-42,0]} 1. d4 {[%emt 0:00:01]} Nf6 {[%emt 0:00:06]} 2. Bg5 {[%emt 0:00:18]} d5 {[%emt 0:00:37]} 3. Bxf6 {[%emt 0:00:05]} exf6 {[%emt 0:00:05]} 4. e3 {[%emt 0:00:03]} Bd6 {[%emt 0:03:27]} 5. g3 {[%emt 0:00:05]} c6 {[%emt 0:01:05]} 6. Bg2 {[%emt 0:00:22] D00: 1 d4 d5: Unusual lines.} O-O {[%emt 0:01:50]} 7. Ne2 {[%emt 0:00:03]} Re8 {[%emt 0:00:56]} 8. O-O {[%emt 0:00:07] The position is equal.} Bg4 {[%emt 0:03:35]} 9. b3 {[%emt 0:02:43] [#]} Bb4 $146 {[%emt 0:08:02]} ({Predecessor:} 9... Qb6 10. Qd3 Bxe2 11. Qxe2 Qxd4 12. c3 Qe5 13. Rd1 Nd7 14. Qc2 Rad8 15. Nd2 Qe7 {½-½ (63) Danielian,E (2407)-Schut,H (2101) Chess.com INT 2020}) 10. c3 {[%emt 0:06:13]} Ba5 {[%emt 0:00:09]} 11. Qc2 {[%emt 0:00:45]} Bxe2 {[%emt 0:01:19]} (11... g6 $11) 12. Qxe2 $14 {[%emt 0:00:02]} Nd7 {[%emt 0:00:36]} 13. Qd3 {[%emt 0:05:01]} Qe7 {[%emt 0:04:55]} 14. Re1 {[%emt 0:15:21]} Rad8 {[%emt 0:01:40]} 15. Nd2 {[%emt 0:02:28][%cal Bb1d2,Bd2f3,Bf3e5,Be5d3,Bd3f4][%mdl 32]} Nf8 {[%emt 0:12:10]} 16. Kf1 {[%emt 0:05:17] White is more active.} Qd7 {[%emt 0:02:55]} 17. Re2 {[%emt 0:07:21]} f5 {[%emt 0:01:27]} 18. Nf3 {[%emt 0:02:23]} g6 {[%emt 0:02:15]} 19. Ne5 {[%emt 0:01:48]} Qe7 {[%emt 0:03:08]} 20. Qc2 {[%emt 0:02:28]} Nd7 {[%emt 0:02:29]} 21. Nd3 {[%emt 0:02:41]} Nf6 {[%emt 0:00:44]} 22. f3 {[%emt 0:02:15]} (22. c4 $11) 22... h5 {[%emt 0:04:31][%cal Bh7h5,Bh5h4][%mdl 32]} 23. Nf4 {[%emt 0:21:47]} h4 {[%emt 0:04:32]} 24. Bh3 {[%emt 0:02:07]} ({Better is} 24. Rae1) 24... Bc7 $17 {[%emt 0:03:05]} 25. Rae1 {[%emt 0:07:19]} Qf8 {[%emt 0:06:30]} 26. Bxf5 {[%emt 0:01:53]} Bxf4 {[%emt 0:03:53]} 27. gxf4 {[%emt 0:00:30]} gxf5 {[%emt 0:00:41]} 28. Rg2+ {[%emt 0:01:13]} Kh8 {[%emt 0:00:37]} 29. Qxf5 {[%emt 0:00:03]} Qh6 {[%emt 0:03:15]} 30. Rg5 {[%emt 0:01:13]} Nh7 {[%emt 0:02:05]} 31. Rh5 {[%emt 0:01:30]} Qg6 {[%emt 0:00:28]} 32. Qxg6 {[%emt 0:00:02]} fxg6 {[%emt 0:00:02]} 33. Rxh4 {[%emt 0:00:05]} Kg7 {[%emt 0:00:47]} 34. Rg4 {[%emt 0:02:22]} Nf6 {[%emt 0:00:27]} 35. Rg5 {[%emt 0:00:14]} Kf7 {[%emt 0:00:20]} 36. Kf2 {[%emt 0:01:51]} Rh8 {[%emt 0:01:18]} 37. Rh1 {[%emt 0:02:30]} Rc8 {[%emt 0:02:02]} 38. Ke2 {[%emt 0:01:32]} c5 {[%emt 0:01:24]} (38... Rh4 $17 {Strongly threatening ...Rch8.} 39. Kd3 Rh3) 39. Kd3 {[%emt 0:02:10]} (39. dxc5 $15 Rxc5 40. Kd3) 39... cxd4 {[%emt 0:01:19]} 40. Kxd4 {[%emt 0:00:45]} Rh3 {[%emt 0:19:44]} 41. Rg3 {[%emt 0:04:36]} Rch8 {[%emt 0:00:00] [#] Threatens to win with ...Rxg3.} 42. Rhg1 {[%emt 0:00:04]} Rxg3 {[%emt 0:00:00]} 43. hxg3 {[%emt 0:00:20][%mdl 4096] Endgame KRN-KR} Rh2 {[%emt 0:00:00] Inhibits Rg2.} 44. e4 {[%emt 0:02:57]} Rd2+ {[%emt 0:00:00]} 45. Ke3 {[%emt 0:00:23]} Rxa2 {[%emt 0:00:00]} 46. e5 {[%emt 0:01:58] [#]} Nd7 {[%emt 0:00:00]} (46... Ng8 $1 $17 {And now ...Ke6 would win.} 47. b4 Ne7) 47. Rh1 $15 {[%emt 0:01:54]} Nf8 {[%emt 0:33:30]} 48. g4 $1 {[%emt 0:00:49]} Rc2 {[%emt 0:00:00] Weighted Error Value: White=0.15 (very precise) /Black=0.14 (very precise)} (48... Ra3 $5 {[%cal Ra3b3]} 49. f5 Rxb3 $15) 1/2-1/2

[Event "Austrian Championship 2022"]
[Site "Vienna"]
[Date "2022.08.15"]
[Round "5.22"]
[White "Steiner, Adam"]
[Black "Ernst, Robert"]
[Result "1-0"]
[ECO "B50"]
[WhiteElo "2226"]
[BlackElo "2001"]
[Annotator "TA"]
[PlyCount "153"]
[EventDate "2022.08.12"]
[EventType "swiss"]
[EventCountry "AUT"]
[SourceTitle "playchess.com"]
[Source "ChessBase"]
[SourceQuality "1"]
[TimeControl "40/5400+30:1800+30"]

{[%evp 12,153,33,26,33,38,39,29,22,26,24,24,27,6,4,11,5,13,1,8,15,4,45,36,35,25,37,19,19,20,18,0,0,0,0,0,0,0,0,0,9,0,10,0,7,6,14,0,2,4,5,5,5,4,6,0,0,0,0,0,43,43,49,0,0,0,43,49,44,4,5,0,0,0,0,0,0,0,0,0,0,0,0,0,0,-8,-8,-8,1436,1306,1008,0,0,-8,-8,-8,-8,-8,-8,-8,-8,-1,0,-8,-8,-8,0,-8,0,-8,0,-8,-8,-8,0,0,0,0,0,0,0,0,0,0,0,0,0,0,0,0,0,0,0,0,29985,29986,29986,29987,29987,29988,29987,0,0,0]} 1. e4 {[%emt 0:00:03]} c5 {[%emt 0:00:09]} 2. Nf3 {[%emt 0:00:17]} e6 {[%emt 0:00:07]} 3. b3 {[%emt 0:00:10]} Nc6 {[%emt 0:00:14]} 4. Bb2 {[%emt 0:00:32]} d6 {[%emt 0:02:57]} 5. d4 {[%emt 0:00:22]} cxd4 {[%emt 0:00:06]} 6. Nxd4 {[%emt 0:00:03]} Nf6 {[%emt 0:00:17]} 7. Bd3 $1 {[%emt 0:00:38][%mdl 4] is now more promising than 7.Nxc6.} Be7 {[%emt 0:00:51] B50: Sicilian: 2...d6, Miscellaneous.} 8. O-O {[%emt 0:00:39]} O-O {[%emt 0:00:55]} 9. Nxc6 {[%emt 0:00:37]} bxc6 {[%emt 0:00:02] White has an edge.} 10. e5 {[%emt 0:00:13]} dxe5 {[%emt 0:07:03]} 11. Bxe5 {[%emt 0:00:02]} Nd7 {[%emt 0:01:41][%cal Bf6d7,Bd7c5,Bc5e4][%mdl 32]} 12. Bc3 {[%emt 0:08:11]} ({Don't go for} 12. Qh5 $2 g6 13. Qh6 Nxe5 $19) 12... Nc5 {[%emt 0:03:03]} 13. Bc4 {[%emt 0:05:43]} Ne4 {[%emt 0:01:43]} 14. Bb2 {[%emt 0:03:35]} Qxd1 {[%emt 0:02:48]} 15. Rxd1 {[%emt 0:00:02]} Bc5 {[%emt 0:00:34]} 16. Rf1 {[%emt 0:04:37] [#]} Rd8 $146 {[%emt 0:16:43]} ({Predecessor:} 16... Bb7 17. Bd3 Nf6 {½-½ (17) Rendle,T (2241)-Hardicsay,P (2302) Budapest 2002}) 17. Bd3 {[%emt 0:00:56]} Nf6 {[%emt 0:01:39]} 18. Nc3 {[%emt 0:14:02]} Bb7 {[%emt 0:05:50]} 19. Ne4 {[%emt 0:05:08]} Nxe4 {[%emt 0:01:06]} 20. Bxe4 {[%emt 0:00:04]} Bd4 {[%emt 0:00:48]} 21. c3 {[%emt 0:05:07]} Bf6 {[%emt 0:01:02]} 22. Rfd1 {[%emt 0:01:26]} a5 {[%emt 0:04:25]} 23. Bf3 {[%emt 0:13:46]} Kf8 {[%emt 0:01:47]} 24. Rxd8+ {[%emt 0:02:37]} Rxd8 {[%emt 0:00:02]} 25. Rd1 {[%emt 0:00:13] Against Rd2} Rxd1+ {[%emt 0:01:17]} 26. Bxd1 $11 {[%emt 0:00:10][%mdl 4096] Endgame KBB-KBB} Ba6 {[%emt 0:01:54]} 27. Ba3+ {[%emt 0:00:36]} Ke8 {[%emt 0:02:17]} 28. c4 {[%emt 0:00:17]} Kd7 {[%emt 0:00:46]} 29. Bf3 {[%emt 0:01:36]} a4 {[%emt 0:01:22]} 30. Bc5 {[%emt 0:01:57]} axb3 {[%emt 0:02:34]} 31. axb3 {[%emt 0:00:02]} Bc3 {[%emt 0:01:56]} 32. Kf1 {[%emt 0:11:18]} e5 {[%emt 0:07:00]} 33. g4 {[%emt 0:07:33]} Bd4 {[%emt 0:00:59]} 34. Bf8 {[%emt 0:00:23]} g6 {[%emt 0:03:16]} 35. g5 {[%emt 0:00:02]} c5 {[%emt 0:01:44]} 36. Bd5 {[%emt 0:07:59]} Ke8 $1 {[%emt 0:00:30]} 37. Bd6 {[%emt 0:02:27]} Kd7 {[%emt 0:00:55]} 38. Bf8 {[%emt 0:00:03]} Ke8 {[%emt 0:00:09]} 39. Bg7 {[%emt 0:00:59][%cal Of2f4]} Bc8 {[%emt 0:01:25]} 40. f3 {[%emt 0:01:00] Inhibits Bg4.} Bf5 {[%emt 0:02:45]} 41. Be4 {[%emt 0:30:56]} Bxe4 {[%emt 0:30:54]} 42. fxe4 {[%emt 0:00:01] KB-KB} Kd7 {[%emt 0:00:43]} 43. Ke2 {[%emt 0:02:13]} Kc6 {[%emt 0:03:23]} 44. Bf6 {[%emt 0:00:18]} Kb6 {[%emt 0:09:25]} 45. Bd8+ {[%emt 0:02:01]} Kc6 {[%emt 0:01:14]} 46. Kd3 {[%emt 0:00:00]} Kd7 {[%emt 0:00:00]} 47. Ba5 {[%emt 0:00:00]} Ke6 {[%emt 0:00:00]} 48. b4 {[%emt 0:00:00]} cxb4 {[%emt 0:12:10]} 49. Bxb4 {[%emt 0:00:00]} f5 $2 {[%emt 0:00:00][%mdl 8192] [#]} (49... Bg1 $11) 50. gxf6 $1 $18 {[%emt 0:00:00]} Kxf6 {[%emt 0:00:00]} 51. Ke2 $2 {[%emt 0:00:00]} (51. c5 $18 Ke7 52. c6+ Kd8 53. Bd6) 51... Ke6 $11 {[%emt 0:00:00]} 52. Bd2 {[%emt 0:00:00]} Kd6 {[%emt 0:00:00]} 53. Bh6 {[%emt 0:00:00]} Kc5 {[%emt 0:00:00]} 54. Kd3 {[%emt 0:00:00]} Kc6 {[%emt 0:00:00]} 55. Bf8 {[%emt 0:00:28]} Bc5 {[%emt 0:00:00]} 56. Bg7 {[%emt 0:00:23]} Bd4 {[%emt 0:00:00]} 57. Bh6 {[%emt 0:00:17]} Kb6 {[%emt 0:00:00]} 58. Bd2 {[%emt 0:00:47]} Kc5 {[%emt 0:00:00]} 59. Bc1 {[%emt 0:01:13]} Kb6 {[%emt 0:00:00]} 60. Ba3 {[%emt 0:00:17]} Kc6 {[%emt 0:00:00]} 61. Ke2 {[%emt 0:01:41]} Bc5 {[%emt 0:00:30]} 62. Bb2 {[%emt 0:00:06]} Bd4 {[%emt 0:01:25]} 63. Bxd4 {[%emt 0:04:21]} exd4 {[%emt 0:00:02] K3P-K3P} 64. Kd3 {[%emt 0:00:01]} Kc5 {[%emt 0:00:21]} 65. e5 {[%emt 0:00:12]} g5 {[%emt 0:00:20]} 66. e6 {[%emt 0:01:34]} Kd6 {[%emt 0:00:06]} 67. Kxd4 {[%emt 0:00:02]} Kxe6 {[%emt 0:00:08] KPP-KPP} 68. Ke4 {[%emt 0:01:31]} Kd6 {[%emt 0:02:13]} 69. Kf5 {[%emt 0:00:09]} Kc5 {[%emt 0:00:03]} 70. Kxg5 {[%emt 0:00:05] Threatening mate with Kh6.} Kxc4 {[%emt 0:00:03] KP-KP} 71. Kh6 {[%emt 0:00:41] Intending h4 and mate.} Kd5 {[%emt 0:03:57]} 72. Kxh7 {[%emt 0:00:17] h4 would kill now.} Ke5 $2 {[%emt 0:00:31][%mdl 8192] [#]} (72... Ke4 $11) 73. Kg6 {[%emt 0:00:16]} Ke6 {[%emt 0:01:00]} 74. h4 {[%emt 0:00:11]} Ke7 {[%emt 0:00:02]} 75. Kg7 {[%emt 0:00:05]} Ke6 {[%emt 0:02:49]} 76. Kg6 $2 {[%emt 0:02:59]} (76. h5 {mates} Kf5 77. h6 Kg5 78. h7 Kf5 79. h8=Q Ke5 80. Qd8 Ke4 81. Kf6) 76... Ke7 {[%emt 0:00:30]} 77. Kg7 {[%emt 0:00:30][%mdl 32768] Weighted Error Value: White=0.17 (very precise) /Black=0.03 (flawless) . Sensor Board Error (Ke4/e5)?} 1-0

[Event "Austrian Championship 2022"]
[Site "Vienna"]
[Date "2022.08.15"]
[Round "5.23"]
[White "Steiner, Bruno"]
[Black "Fuchs, Patrick"]
[Result "1-0"]
[ECO "D02"]
[WhiteElo "2126"]
[BlackElo "1990"]
[Annotator "NA RC"]
[PlyCount "83"]
[EventDate "2022.08.12"]
[EventType "swiss"]
[EventCountry "AUT"]
[SourceTitle "playchess.com"]
[Source "ChessBase"]
[SourceQuality "1"]
[TimeControl "40/5400+30:1800+30"]

1. Nf3 {[%emt 0:02:09]} c5 {[%emt 0:00:23]} 2. e3 {[%emt 0:00:07]} d5 {[%emt 0:00:29]} 3. d4 {[%emt 0:00:06]} Nc6 {[%emt 0:00:29]} 4. c3 {[%emt 0:00:09]} Bg4 {[%emt 0:00:50]} 5. h3 {[%emt 0:00:41]} Bh5 {[%emt 0:01:26]} 6. dxc5 {[%emt 0:04:46]} e6 {[%emt 0:11:10]} 7. b4 {[%emt 0:00:22]} Bxf3 {[%emt 0:05:42]} 8. Qxf3 {[%emt 0:03:00]} a5 {[%emt 0:02:44]} 9. Bb5 {[%emt 0:00:41]} g6 {[%emt 0:00:39]} 10. a3 {[%emt 0:13:21]} Bg7 {[%emt 0:00:55]} 11. Ra2 {[%emt 0:00:39]} Nge7 {[%emt 0:00:16]} 12. O-O {[%emt 0:00:14]} O-O {[%emt 0:00:09]} 13. Qe2 {[%emt 0:06:34]} e5 {[%emt 0:10:11]} 14. Bxc6 {[%emt 0:14:41]} bxc6 {[%emt 0:16:34]} 15. Nd2 {[%emt 0:02:40]} f5 {[%emt 0:08:27]} 16. Nb3 {[%emt 0:02:36]} a4 {[%emt 0:05:54]} 17. Na5 {[%emt 0:01:06]} Qc8 {[%emt 0:02:58]} 18. Rd2 {[%emt 0:00:24]} f4 {[%emt 0:01:51]} 19. exf4 {[%emt 0:01:30]} e4 {[%emt 0:01:39]} 20. c4 {[%emt 0:02:58]} Rxf4 {[%emt 0:01:03]} 21. cxd5 {[%emt 0:00:39]} cxd5 {[%emt 0:00:46]} 22. Rdd1 {[%emt 0:07:53]} Rf7 {[%emt 0:03:14]} 23. Bg5 {[%emt 0:01:53]} Qe6 {[%emt 0:02:19]} 24. Qa2 {[%emt 0:07:32]} Bf6 {[%emt 0:01:27]} 25. Be3 {[%emt 0:02:18]} Be5 {[%emt 0:01:07]} 26. Bg5 {[%emt 0:02:43]} Bf6 {[%emt 0:00:09]} 27. Bh6 {[%emt 0:00:31]} Be5 {[%emt 0:00:13]} 28. Qe2 {[%emt 0:13:46]} Nf5 {[%emt 0:06:06]} 29. Bc1 {[%emt 0:00:39]} Bc7 {[%emt 0:00:32]} 30. Bb2 {[%emt 0:02:13]} d4 {[%emt 0:00:45]} 31. Nc4 {[%emt 0:02:54]} Rd8 {[%emt 0:00:09]} 32. Rfe1 {[%emt 0:00:37]} Re7 {[%emt 0:00:35]} 33. Rc1 {[%emt 0:02:08]} Bf4 {[%emt 0:06:10]} 34. Qc2 {[%emt 0:00:42]} d3 {[%emt 0:07:48]} 35. Qc3 {[%emt 0:00:36]} Rd4 {[%emt 0:00:01]} 36. Ne3 {[%emt 0:00:40]} d2 {[%emt 0:01:39]} 37. Nxf5 {[%emt 0:00:10]} dxe1=Q+ {[%emt 0:00:07]} 38. Rxe1 {[%emt 0:00:07]} gxf5 {[%emt 0:00:04]} 39. Qxd4 {[%emt 0:00:09]} Be5 {[%emt 0:00:24]} 40. Qxe5 {[%emt 0:00:32]} Qxe5 {[%emt 0:00:09]} 41. Bxe5 {[%emt 0:30:02]} Rxe5 {[%emt 0:30:08]} 42. Rc1 {[%emt 0:02:17]} 1-0

[Event "Austrian Championship 2022"]
[Site "Vienna"]
[Date "2022.08.15"]
[Round "5.24"]
[White "Kersten, Julian"]
[Black "Trkulja, Zoran"]
[Result "0-1"]
[ECO "B45"]
[WhiteElo "1999"]
[BlackElo "2111"]
[Annotator "NA RC"]
[PlyCount "76"]
[EventDate "2022.08.12"]
[EventType "swiss"]
[EventCountry "AUT"]
[SourceTitle "playchess.com"]
[Source "ChessBase"]
[SourceQuality "1"]
[TimeControl "40/5400+30:1800+30"]

1. e4 {[%emt 0:01:53]} c5 {[%emt 0:00:10]} 2. Nf3 {[%emt 0:00:05]} e6 {[%emt 0:00:24]} 3. d4 {[%emt 0:00:09]} cxd4 {[%emt 0:00:05]} 4. Nxd4 {[%emt 0:00:07]} Nf6 {[%emt 0:00:03]} 5. Nc3 {[%emt 0:00:09]} Nc6 {[%emt 0:00:03]} 6. Be2 {[%emt 0:00:20]} Bb4 {[%emt 0:03:51]} 7. O-O {[%emt 0:00:19]} a6 {[%emt 0:01:45]} 8. Nxc6 {[%emt 0:01:12]} dxc6 {[%emt 0:08:54]} 9. Qxd8+ {[%emt 0:01:22]} Kxd8 {[%emt 0:00:02]} 10. e5 {[%emt 0:00:11]} Bxc3 {[%emt 0:04:10]} 11. bxc3 {[%emt 0:00:12]} Nd7 {[%emt 0:00:10]} 12. f4 {[%emt 0:00:32]} Kc7 {[%emt 0:13:00]} 13. Ba3 {[%emt 0:00:52]} c5 {[%emt 0:00:37]} 14. Bf3 {[%emt 0:02:29]} Ra7 {[%emt 0:00:38]} 15. Rfd1 {[%emt 0:01:28]} b6 {[%emt 0:00:10]} 16. Rd6 {[%emt 0:02:03]} Bb7 {[%emt 0:02:00]} 17. Bxb7 {[%emt 0:09:49]} Rxb7 {[%emt 0:00:07]} 18. c4 {[%emt 0:00:19]} Rd8 {[%emt 0:04:42]} 19. Rad1 {[%emt 0:01:15]} Rbb8 {[%emt 0:00:31]} 20. Bb2 {[%emt 0:01:02]} g6 {[%emt 0:10:39]} 21. Bc3 {[%emt 0:05:30]} Nf8 {[%emt 0:00:53]} 22. Be1 {[%emt 0:01:12]} Rxd6 {[%emt 0:00:35]} 23. exd6+ {[%emt 0:00:10]} Kc6 {[%emt 0:02:24]} 24. Bh4 {[%emt 0:07:06]} Nd7 {[%emt 0:02:25]} 25. Be7 {[%emt 0:01:05]} b5 {[%emt 0:04:54]} 26. cxb5+ {[%emt 0:01:54]} axb5 {[%emt 0:00:07]} 27. Rd3 {[%emt 0:26:39]} Ra8 {[%emt 0:02:26]} 28. a3 {[%emt 0:00:58]} Ra4 {[%emt 0:01:35]} 29. Rh3 {[%emt 0:00:49]} h5 {[%emt 0:00:23]} 30. g4 {[%emt 0:00:54]} hxg4 {[%emt 0:14:08]} 31. Rh8 {[%emt 0:01:03]} Nb6 {[%emt 0:01:16]} 32. Rb8 {[%emt 0:02:29]} Ra8 {[%emt 0:03:24]} 33. Rxa8 {[%emt 0:01:14]} Nxa8 {[%emt 0:00:06]} 34. d7 {[%emt 0:00:33]} Kxd7 {[%emt 0:00:07]} 35. Bxc5 {[%emt 0:00:03]} Kc6 {[%emt 0:00:13]} 36. Bd4 {[%emt 0:01:38]} Kd5 {[%emt 0:00:31]} 37. Be5 {[%emt 0:01:02]} Nb6 {[%emt 0:00:23]} 38. Bb2 {[%emt 0:02:09]} Ke4 {[%emt 0:02:36]} 0-1

[Event "Austrian Championship 2022"]
[Site "Vienna"]
[Date "2022.08.16"]
[Round "6.1"]
[White "Nolz, Tom"]
[Black "Geroe, Leonhard"]
[Result "1-0"]
[ECO "D43"]
[WhiteElo "2230"]
[BlackElo "2017"]
[Annotator "TA"]
[PlyCount "47"]
[EventDate "2022.08.12"]
[EventType "swiss"]
[EventCountry "AUT"]
[SourceTitle "playchess.com"]
[Source "ChessBase"]
[SourceQuality "1"]
[TimeControl "40/5400+30:1800+30"]

{[%evp 16,47,-27,-23,5,0,14,4,114,99,324,304,313,118,114,118,116,116,116,118,118,112,117,117,179,186,211,206,204,214,200,129,259,210]} 1. d4 {[%emt 0:00:10]} d5 {[%emt 0:00:50]} 2. Nf3 {[%emt 0:00:12]} Nf6 {[%emt 0:00:14]} 3. c4 {[%emt 0:00:07]} e6 {[%emt 0:00:10]} 4. Bg5 {[%emt 0:00:20]} c6 {[%emt 0:01:33]} 5. Nc3 {[%emt 0:00:59]} h6 {[%emt 0:00:34]} 6. Bxf6 {[%emt 0:00:17]} Qxf6 {[%emt 0:00:07]} 7. e4 {[%emt 0:00:50]} dxe4 {[%emt 0:00:57]} 8. Nxe4 {[%emt 0:00:07]} Bb4+ {[%emt 0:00:40]} 9. Ned2 {[%emt 0:00:15]} Nd7 {[%emt 0:05:30] D43: Semi-Slav: 5 Bg5 h6.} 10. a3 {[%emt 0:01:39]} Bxd2+ {[%emt 0:01:40]} 11. Qxd2 {[%emt 0:00:03] [#]} e5 $146 {[%emt 0:03:39]} (11... b6 $11) ({Predecessor:} 11... O-O 12. Qe3 c5 13. Rb1 cxd4 14. Qxd4 Qxd4 15. Nxd4 Nf6 16. Be2 e5 17. Nf3 Re8 {1-0 (48) Diaz Vasquez,M (2141)-Rebolledo Canto,M (1982) Santiago de Chile 2007}) 12. dxe5 $16 {[%emt 0:01:35]} Nxe5 {[%emt 0:02:52]} (12... Qe7 $16 {might work better.}) 13. Qe3 $18 {[%emt 0:01:24]} O-O {[%emt 0:00:16] And now ...Nxf3+ would win.} 14. Qxe5 {[%emt 0:12:14]} (14. Nxe5 $18 Re8 15. f4) 14... Qxe5+ $16 {[%emt 0:00:25]} 15. Nxe5 {[%emt 0:00:05] Threatens to win with 0-0-0.} Re8 {[%emt 0:00:06] [#]} 16. O-O-O $1 {[%emt 0:00:04] Strongly threatening Nd7.} Rxe5 {[%emt 0:00:15]} 17. Rd8+ {[%emt 0:00:02]} Kh7 {[%emt 0:00:12]} 18. Bd3+ {[%emt 0:00:04]} g6 {[%emt 0:01:23]} 19. Kd2 $36 {[%emt 0:12:03][%mdl 2048] White is on the roll.} Re7 {[%emt 0:18:44] [#]} (19... b6 $16) 20. Re1 $1 $18 {[%emt 0:00:18]} Rd7 {[%emt 0:02:03]} 21. Ree8 {[%emt 0:11:17] aiming for Rxd7.} Rxd8 {[%emt 0:01:53]} 22. Rxd8 {[%emt 0:00:13]} Kg7 {[%emt 0:01:32]} 23. b4 {[%emt 0:01:29]} b6 {[%emt 0:01:17]} (23... Kf6 $16 24. Be4 Ke7) 24. Be4 {[%emt 0:00:30] Weighted Error Value: White=0.19 (very precise) /Black=0.54} 1-0